[Event "*** Titled Tuesday Blitz"]
[Site "Chess.com"]
[Date "2020.05.26"]
[Round "10"]
[White "dosto07"]
[Black "freshfoodcompany"]
[Result "1/2-1/2"]
[WhiteElo "2134"]
[BlackElo "2195"]
[TimeControl "180+1"]
[EndTime "12:03:29 PDT"]
[Termination "Game drawn by agreement"]

1. e4 {[%clk 0:02:45.7]} 1... c5 {[%clk 0:02:59.3]} 2. Nf3 {[%clk 0:02:44.6]}
2... Nc6 {[%clk 0:02:59]} 3. Bb5 {[%clk 0:02:43.7]} 3... g6 {[%clk 0:02:57.2]}
4. O-O {[%clk 0:02:41]} 4... Bg7 {[%clk 0:02:56]} 5. c3 {[%clk 0:02:40]} 5... e5
{[%clk 0:02:55.3]} 6. d3 {[%clk 0:02:37.3]} 6... Nge7 {[%clk 0:02:53.7]} 7. Be3
{[%clk 0:02:36.8]} 7... d6 {[%clk 0:02:50.6]} 8. d4 {[%clk 0:02:35]} 8... exd4
{[%clk 0:02:47.2]} 9. cxd4 {[%clk 0:02:34.3]} 9... O-O {[%clk 0:02:39.3]} 10.
Nc3 {[%clk 0:02:32.4]} 10... Bg4 {[%clk 0:02:36.2]} 11. dxc5 {[%clk 0:02:24.2]}
11... Bxf3 {[%clk 0:02:33.3]} 12. Qxf3 {[%clk 0:02:20.9]} 12... dxc5 {[%clk
0:02:27.4]} 13. Bxc5 {[%clk 0:02:17.2]} 13... Nd4 {[%clk 0:02:24.2]} 14. Bxd4
{[%clk 0:02:09.7]} 14... Qxd4 {[%clk 0:02:20]} 15. Rad1 {[%clk 0:01:54.7]} 15...
Qb6 {[%clk 0:02:12.8]} 16. Qe2 {[%clk 0:01:30.7]} 16... a6 {[%clk 0:02:02.3]}
17. Bc4 {[%clk 0:01:27.2]} 17... Rfd8 {[%clk 0:01:51.9]} 18. Nd5 {[%clk
0:01:19.4]} 18... Nxd5 {[%clk 0:01:48.8]} 19. Rxd5 {[%clk 0:01:15.5]} 19... Rxd5
{[%clk 0:01:38.2]} 20. Bxd5 {[%clk 0:01:14.7]} 20... Re8 {[%clk 0:01:22.6]} 21.
Qf3 {[%clk 0:01:09.8]} 21... Re7 {[%clk 0:01:11.1]} 22. b3 {[%clk 0:01:06.2]}
22... h5 {[%clk 0:01:05.7]} 23. g3 {[%clk 0:01:03.8]} 23... Rc7 {[%clk
0:00:57.7]} 24. h4 {[%clk 0:00:59.3]} 24... Qf6 {[%clk 0:00:39.5]} 25. Qxf6
{[%clk 0:00:54.1]} 25... Bxf6 {[%clk 0:00:39.1]} 26. Rd1 {[%clk 0:00:44.5]}
26... b5 {[%clk 0:00:24.7]} 27. Rd3 {[%clk 0:00:43.2]} 27... Rc2 {[%clk
0:00:20.5]} 28. a3 {[%clk 0:00:37.3]} 28... Rc3 {[%clk 0:00:20]} 29. Rxc3 {[%clk
0:00:31.2]} 29... Bxc3 {[%clk 0:00:20.4]} 30. a4 {[%clk 0:00:31.6]} 30... bxa4
{[%clk 0:00:19.9]} 31. bxa4 {[%clk 0:00:30.9]} 31... a5 {[%clk 0:00:20.3]} 32.
Kf1 {[%clk 0:00:29.8]} 32... Kg7 {[%clk 0:00:19.6]} 33. Ke2 {[%clk 0:00:29.6]}
33... Kf6 {[%clk 0:00:18.5]} 34. f4 {[%clk 0:00:26.5]} 34... Bb4 {[%clk
0:00:18.2]} 35. Kf3 {[%clk 0:00:26.4]} 35... Ke7 {[%clk 0:00:18.1]} 36. g4
{[%clk 0:00:23.5]} 36... hxg4+ {[%clk 0:00:17.3]} 37. Kxg4 {[%clk 0:00:23.4]}
37... Kf6 {[%clk 0:00:16.9]} 38. e5+ {[%clk 0:00:22.5]} 38... Kg7 {[%clk
0:00:16.7]} 39. h5 {[%clk 0:00:22.3]} 39... gxh5+ {[%clk 0:00:16.5]} 40. Kxh5
{[%clk 0:00:22.3]} 40... Bd2 {[%clk 0:00:16.6]} 41. Kg4 {[%clk 0:00:22.1]} 41...
Bb4 {[%clk 0:00:16]} 42. f5 {[%clk 0:00:21.7]} 42... f6 {[%clk 0:00:14.6]} 43.
e6 {[%clk 0:00:19.8]} 43... Kf8 {[%clk 0:00:14.7]} 44. Kf4 {[%clk 0:00:19.6]}
44... Ke7 {[%clk 0:00:14.8]} 45. Ke4 {[%clk 0:00:19.6]} 45... Bd2 {[%clk
0:00:14.7]} 46. Bc4 {[%clk 0:00:18.3]} 46... Bb4 {[%clk 0:00:15]} 47. Kd5 {[%clk
0:00:17.7]} 47... Be1 {[%clk 0:00:15]} 48. Bb5 {[%clk 0:00:17.7]} 48... Bc3
{[%clk 0:00:15.1]} 49. Kc6 {[%clk 0:00:17.7]} 49... Bd2 {[%clk 0:00:15.2]} 50.
Bc4 {[%clk 0:00:17.7]} 50... Bc3 {[%clk 0:00:15.2]} 51. Kb5 {[%clk 0:00:17.9]}
51... Bd2 {[%clk 0:00:15.4]} 52. Bd5 {[%clk 0:00:18.3]} 52... Bc3 {[%clk
0:00:15.7]} 53. Be4 {[%clk 0:00:19.2]} 53... Bd2 {[%clk 0:00:16]} 54. Kc4 {[%clk
0:00:20]} 54... Bb4 {[%clk 0:00:16]} 55. Bd5 {[%clk 0:00:20.3]} 55... Be1 {[%clk
0:00:16.3]} 56. Kd3 {[%clk 0:00:20.4]} 56... Bb4 {[%clk 0:00:16.8]} 57. Kc4
{[%clk 0:00:20.3]} 57... Be1 {[%clk 0:00:17]} 58. Bc6 {[%clk 0:00:20.2]} 58...
Bb4 {[%clk 0:00:17.3]} 59. Kd3 {[%clk 0:00:20.8]} 59... Be1 {[%clk 0:00:17.5]}
60. Kc4 {[%clk 0:00:21.7]} 60... Bb4 {[%clk 0:00:17.6]} 61. Kb5 {[%clk
0:00:22.6]} 61... Be1 {[%clk 0:00:17.6]} 62. Kb6 {[%clk 0:00:22.8]} 62... Bb4
{[%clk 0:00:17.9]} 63. Kb5 {[%clk 0:00:22.9]} 63... Be1 {[%clk 0:00:18.3]} 64.
Kb6 {[%clk 0:00:19.8]} 1/2-1/2

[Event "*** Titled Tuesday Blitz"]
[Site "Chess.com"]
[Date "2020.05.26"]
[Round "10"]
[White "SoltaniciR"]
[Black "SketchyMoves"]
[Result "0-1"]
[WhiteElo "2469"]
[BlackElo "2632"]
[TimeControl "180+1"]
[EndTime "12:03:34 PDT"]
[Termination "SketchyMoves won on time"]

1. e4 {[%clk 0:03:00.9]} 1... e6 {[%clk 0:02:59.6]} 2. d4 {[%clk 0:02:57.4]}
2... d5 {[%clk 0:02:59.8]} 3. Nd2 {[%clk 0:02:56.2]} 3... a6 {[%clk 0:02:59.6]}
4. Bd3 {[%clk 0:02:45.5]} 4... c5 {[%clk 0:02:58.6]} 5. dxc5 {[%clk 0:02:44.8]}
5... Bxc5 {[%clk 0:02:57.1]} 6. Ngf3 {[%clk 0:02:45.2]} 6... Nc6 {[%clk
0:02:56.4]} 7. O-O {[%clk 0:02:43.1]} 7... Nf6 {[%clk 0:02:53.4]} 8. Qe2 {[%clk
0:02:29.9]} 8... e5 {[%clk 0:02:32.8]} 9. exd5 {[%clk 0:02:04.6]} 9... Qxd5
{[%clk 0:02:33.7]} 10. Ne4 {[%clk 0:02:04.2]} 10... Be7 {[%clk 0:02:30]} 11.
Nxf6+ {[%clk 0:01:13.2]} 11... Bxf6 {[%clk 0:02:30.9]} 12. Rd1 {[%clk
0:01:12.5]} 12... Qa5 {[%clk 0:02:27.5]} 13. c3 {[%clk 0:01:05]} 13... Be6
{[%clk 0:02:16.5]} 14. b4 {[%clk 0:00:33.2]} 14... Qc7 {[%clk 0:02:15.8]} 15.
Ng5 {[%clk 0:00:33.2]} 15... Bxg5 {[%clk 0:02:12.6]} 16. Bxg5 {[%clk 0:00:32.9]}
16... h6 {[%clk 0:02:05.6]} 17. Bh4 {[%clk 0:00:30.7]} 17... O-O {[%clk
0:01:59.3]} 18. Rac1 {[%clk 0:00:28.6]} 18... Rae8 {[%clk 0:01:55]} 19. f3
{[%clk 0:00:15]} 19... f5 {[%clk 0:01:52.9]} 20. Bf2 {[%clk 0:00:14.7]} 20... g5
{[%clk 0:01:44.7]} 21. a4 {[%clk 0:00:14.5]} 21... Qg7 {[%clk 0:01:23.5]} 22. b5
{[%clk 0:00:14.1]} 22... axb5 {[%clk 0:01:23.6]} 23. axb5 {[%clk 0:00:13.9]}
23... Na5 {[%clk 0:01:24.1]} 24. Bc5 {[%clk 0:00:10.9]} 24... Rf7 {[%clk
0:01:21.9]} 25. Bb4 {[%clk 0:00:08.5]} 25... b6 {[%clk 0:01:01]} 26. Re1 {[%clk
0:00:08.5]} 26... Bd5 {[%clk 0:00:48.7]} 27. c4 {[%clk 0:00:08.6]} 27... Ba8
{[%clk 0:00:48.5]} 28. c5 {[%clk 0:00:08.9]} 28... Nb3 {[%clk 0:00:48.4]} 29. c6
{[%clk 0:00:07.1]} 29... Nxc1 {[%clk 0:00:44]} 30. Rxc1 {[%clk 0:00:08]} 30...
Kh8 {[%clk 0:00:37.5]} 31. Bc4 {[%clk 0:00:08]} 31... Rf6 {[%clk 0:00:34.5]} 32.
Bc3 {[%clk 0:00:07.6]} 32... Rd6 {[%clk 0:00:32.9]} 33. Re1 {[%clk 0:00:06.9]}
33... Kh7 {[%clk 0:00:24.6]} 34. Bxe5 {[%clk 0:00:07.2]} 34... Qg6 {[%clk
0:00:23.3]} 35. Qf2 {[%clk 0:00:04.2]} 35... Rdd8 {[%clk 0:00:21.6]} 36. Bc7
{[%clk 0:00:02.4]} 36... Rxe1+ {[%clk 0:00:20.1]} 37. Qxe1 {[%clk 0:00:03.3]}
37... Re8 {[%clk 0:00:20.2]} 38. Qd2 {[%clk 0:00:03.6]} 38... Re7 {[%clk
0:00:14.4]} 39. Bd8 {[%clk 0:00:03.4]} 39... Ra7 {[%clk 0:00:10.8]} 40. c7
{[%clk 0:00:04.3]} 40... Bb7 {[%clk 0:00:05]} 41. Kh1 {[%clk 0:00:05.2]} 41...
Qg7 {[%clk 0:00:05.2]} 42. h3 {[%clk 0:00:04.4]} 42... Ra1+ {[%clk 0:00:05.3]}
43. Kh2 {[%clk 0:00:03.9]} 43... Qe5+ {[%clk 0:00:05.9]} 44. f4 {[%clk
0:00:03.3]} 44... gxf4 {[%clk 0:00:03.3]} 45. Qd7+ {[%clk 0:00:03.1]} 45... Qg7
{[%clk 0:00:02.2]} 46. Qxg7+ {[%clk 0:00:03]} 46... Kxg7 {[%clk 0:00:03.1]} 47.
Be6 {[%clk 0:00:03.2]} 47... Rc1 {[%clk 0:00:02.3]} 48. Bxf5 {[%clk 0:00:02.7]}
48... f3 {[%clk 0:00:02.5]} 49. gxf3 {[%clk 0:00:02.3]} 49... Rc5 {[%clk
0:00:02]} 50. Bg4 {[%clk 0:00:01.2]} 50... h5 {[%clk 0:00:01.9]} 0-1

[Event "*** Titled Tuesday Blitz"]
[Site "Chess.com"]
[Date "2020.05.26"]
[Round "10"]
[White "BaMBoMaTTo"]
[Black "ama18"]
[Result "0-1"]
[WhiteElo "2682"]
[BlackElo "2549"]
[TimeControl "180+1"]
[EndTime "12:03:35 PDT"]
[Termination "ama18 won on time"]

1. e4 {[%clk 0:02:53.7]} 1... c5 {[%clk 0:02:53.7]} 2. Nf3 {[%clk 0:02:54]} 2...
d6 {[%clk 0:02:53.5]} 3. d4 {[%clk 0:02:54.6]} 3... cxd4 {[%clk 0:02:54.4]} 4.
Nxd4 {[%clk 0:02:55.5]} 4... Nf6 {[%clk 0:02:49.5]} 5. Nc3 {[%clk 0:02:56]} 5...
a6 {[%clk 0:02:50]} 6. Bg5 {[%clk 0:02:55.8]} 6... Nbd7 {[%clk 0:02:48.9]} 7.
Qe2 {[%clk 0:02:55.3]} 7... h6 {[%clk 0:02:45]} 8. Bh4 {[%clk 0:02:54.5]} 8...
g6 {[%clk 0:02:45.4]} 9. f4 {[%clk 0:02:53.7]} 9... e5 {[%clk 0:02:45.3]} 10.
fxe5 {[%clk 0:02:53.6]} 10... dxe5 {[%clk 0:02:46.2]} 11. O-O-O {[%clk 0:02:53]}
11... Qc7 {[%clk 0:02:43.6]} 12. Nb3 {[%clk 0:02:53.2]} 12... b5 {[%clk
0:02:43.5]} 13. Nd5 {[%clk 0:02:53.3]} 13... Nxd5 {[%clk 0:02:42.5]} 14. exd5
{[%clk 0:02:54.2]} 14... Bd6 {[%clk 0:02:42.6]} 15. Qd2 {[%clk 0:02:54.7]} 15...
f5 {[%clk 0:02:42.5]} 16. Kb1 {[%clk 0:02:42.9]} 16... Kf7 {[%clk 0:02:42]} 17.
Bd3 {[%clk 0:02:22.9]} 17... Nf6 {[%clk 0:02:30.9]} 18. Bxf6 {[%clk 0:02:20.9]}
18... Kxf6 {[%clk 0:02:31.8]} 19. g4 {[%clk 0:02:19.4]} 19... f4 {[%clk
0:02:29.1]} 20. Qe2 {[%clk 0:02:16.6]} 20... Bd7 {[%clk 0:02:15.7]} 21. Nd2
{[%clk 0:02:16.2]} 21... Kg7 {[%clk 0:02:09]} 22. Ne4 {[%clk 0:01:56.6]} 22...
Raf8 {[%clk 0:02:07.6]} 23. h3 {[%clk 0:01:30.3]} 23... g5 {[%clk 0:01:51.2]}
24. Rhe1 {[%clk 0:01:29.6]} 24... Re8 {[%clk 0:01:50.8]} 25. Rc1 {[%clk
0:01:18.1]} 25... b4 {[%clk 0:01:48.3]} 26. Bxa6 {[%clk 0:01:10.7]} 26... Ra8
{[%clk 0:01:43.3]} 27. Bc4 {[%clk 0:01:09]} 27... Rhc8 {[%clk 0:01:33]} 28. Bb3
{[%clk 0:01:09.1]} 28... Bf8 {[%clk 0:01:26.8]} 29. Rcd1 {[%clk 0:00:47.2]}
29... Qa5 {[%clk 0:01:26.1]} 30. Nxg5 {[%clk 0:00:36.4]} 30... hxg5 {[%clk
0:00:53.2]} 31. Qxe5+ {[%clk 0:00:36.6]} 31... Kg6 {[%clk 0:00:51.3]} 32. h4
{[%clk 0:00:30.2]} 32... Qd8 {[%clk 0:00:33.9]} 33. c3 {[%clk 0:00:21.4]} 33...
Qf6 {[%clk 0:00:25]} 34. Bc2+ {[%clk 0:00:21.6]} 34... Kg7 {[%clk 0:00:25.1]}
35. Qe4 {[%clk 0:00:22.5]} 35... Kf7 {[%clk 0:00:14.9]} 36. Qh7+ {[%clk
0:00:21.2]} 36... Bg7 {[%clk 0:00:15.2]} 37. Qh5+ {[%clk 0:00:15.8]} 37... Kf8
{[%clk 0:00:12.2]} 38. hxg5 {[%clk 0:00:16.3]} 38... Qf7 {[%clk 0:00:12.5]} 39.
g6 {[%clk 0:00:15.4]} 39... Qf6 {[%clk 0:00:12.4]} 40. g5 {[%clk 0:00:15.8]}
40... Qa6 {[%clk 0:00:10.9]} 41. Bb3 {[%clk 0:00:13.7]} 41... Ba4 {[%clk
0:00:10.8]} 42. Re4 {[%clk 0:00:08.9]} 42... Bxb3 {[%clk 0:00:09.4]} 43. Rxf4+
{[%clk 0:00:09.3]} 43... Ke8 {[%clk 0:00:09.1]} 44. Re1+ {[%clk 0:00:08.3]}
44... Kd8 {[%clk 0:00:09.4]} 0-1

[Event "*** Titled Tuesday Blitz"]
[Site "Chess.com"]
[Date "2020.05.26"]
[Round "10"]
[White "vidavi"]
[Black "MFguimaraes"]
[Result "0-1"]
[WhiteElo "2321"]
[BlackElo "2497"]
[TimeControl "180+1"]
[EndTime "12:03:42 PDT"]
[Termination "MFguimaraes won by resignation"]

1. d4 {[%clk 0:03:00.9]} 1... d5 {[%clk 0:02:58.5]} 2. Bf4 {[%clk 0:03:01.4]}
2... e6 {[%clk 0:02:56.1]} 3. e3 {[%clk 0:03:01.8]} 3... Bd6 {[%clk 0:02:55.7]}
4. Bg3 {[%clk 0:03:00.8]} 4... Nf6 {[%clk 0:02:55.6]} 5. Nf3 {[%clk 0:03:00.8]}
5... c5 {[%clk 0:02:55.8]} 6. c3 {[%clk 0:02:58.5]} 6... Qc7 {[%clk 0:02:55.4]}
7. Nbd2 {[%clk 0:02:56.8]} 7... Nbd7 {[%clk 0:02:55.4]} 8. Bd3 {[%clk
0:02:55.7]} 8... O-O {[%clk 0:02:51.2]} 9. O-O {[%clk 0:02:53.6]} 9... e5 {[%clk
0:02:50.8]} 10. dxe5 {[%clk 0:02:52.2]} 10... Nxe5 {[%clk 0:02:49.8]} 11. Nxe5
{[%clk 0:02:52.2]} 11... Bxe5 {[%clk 0:02:50.7]} 12. e4 {[%clk 0:02:52.6]} 12...
Bxg3 {[%clk 0:02:46]} 13. hxg3 {[%clk 0:02:48.6]} 13... Bg4 {[%clk 0:02:37.4]}
14. Qc2 {[%clk 0:02:44]} 14... c4 {[%clk 0:02:26.9]} 15. Bxc4 {[%clk 0:02:33.4]}
15... dxc4 {[%clk 0:02:25.2]} 16. e5 {[%clk 0:02:31.4]} 16... Qxe5 {[%clk
0:02:20.3]} 17. Nxc4 {[%clk 0:02:30.5]} 17... Qe2 {[%clk 0:02:16.7]} 18. Qa4
{[%clk 0:02:28.6]} 18... Bd7 {[%clk 0:02:07.8]} 19. Qb4 {[%clk 0:02:23.9]} 19...
Bc6 {[%clk 0:01:48.7]} 20. Rfe1 {[%clk 0:02:14.4]} 20... Qh5 {[%clk 0:01:48.3]}
21. Ne5 {[%clk 0:02:07.7]} 21... Rfe8 {[%clk 0:01:34.9]} 22. f4 {[%clk
0:02:05.5]} 22... Ng4 {[%clk 0:01:31.5]} 23. Nxg4 {[%clk 0:02:01.1]} 23... Qxg4
{[%clk 0:01:32.4]} 24. Kf2 {[%clk 0:02:00.7]} 24... h5 {[%clk 0:01:21]} 25. f5
{[%clk 0:01:31]} 25... Qxb4 {[%clk 0:01:14]} 26. cxb4 {[%clk 0:01:31.9]} 26...
Rxe1 {[%clk 0:01:12.2]} 27. Rxe1 {[%clk 0:01:32.8]} 27... Re8 {[%clk 0:01:12.4]}
28. Rh1 {[%clk 0:01:28.7]} 28... Rd8 {[%clk 0:01:09.7]} 29. Ke3 {[%clk
0:01:25.7]} 29... g6 {[%clk 0:01:06.4]} 30. g4 {[%clk 0:01:04.5]} 30... hxg4
{[%clk 0:00:58.9]} 31. fxg6 {[%clk 0:01:01.6]} 31... fxg6 {[%clk 0:00:55.4]} 32.
Rh4 {[%clk 0:00:57.5]} 32... Re8+ {[%clk 0:00:51.5]} 33. Kf4 {[%clk 0:00:54.3]}
33... Re4+ {[%clk 0:00:51.6]} 34. Kg5 {[%clk 0:00:52.8]} 34... Kg7 {[%clk
0:00:50.4]} 35. Rh1 {[%clk 0:00:42.8]} 35... Bd7 {[%clk 0:00:45.6]} 36. Rd1
{[%clk 0:00:40]} 36... Be6 {[%clk 0:00:33.8]} 37. Rc1 {[%clk 0:00:37.6]} 37...
Rxb4 {[%clk 0:00:29]} 38. Rc7+ {[%clk 0:00:37.1]} 38... Bf7 {[%clk 0:00:29.4]}
39. b3 {[%clk 0:00:33.4]} 39... g3 {[%clk 0:00:27.8]} 40. Rd7 {[%clk 0:00:30]}
40... Rb5+ {[%clk 0:00:26.6]} 41. Kf4 {[%clk 0:00:28.7]} 41... Kf6 {[%clk
0:00:26.7]} 42. Rc7 {[%clk 0:00:23.5]} 42... a5 {[%clk 0:00:26.7]} 43. Kxg3
{[%clk 0:00:20.3]} 43... Rg5+ {[%clk 0:00:26.4]} 44. Kf3 {[%clk 0:00:20]} 44...
Bd5+ {[%clk 0:00:26.8]} 45. Ke3 {[%clk 0:00:19.1]} 45... Bxg2 {[%clk 0:00:26.9]}
46. Kf4 {[%clk 0:00:16.1]} 46... Rf5+ {[%clk 0:00:26.2]} 47. Kg4 {[%clk
0:00:16.1]} 47... Bc6 {[%clk 0:00:27.1]} 48. Rc8 {[%clk 0:00:14.8]} 48... Bf3+
{[%clk 0:00:27.5]} 49. Kg3 {[%clk 0:00:14.4]} 49... Kg5 {[%clk 0:00:27]} 50. Rc7
{[%clk 0:00:13.1]} 50... Bc6 {[%clk 0:00:27]} 51. Re7 {[%clk 0:00:11.8]} 51...
Rf3+ {[%clk 0:00:27]} 52. Kh2 {[%clk 0:00:09.4]} 52... Kg4 {[%clk 0:00:27.3]}
53. Re2 {[%clk 0:00:08.7]} 53... Rh3+ {[%clk 0:00:25.4]} 54. Kg1 {[%clk
0:00:08.3]} 54... Kg3 {[%clk 0:00:24.5]} 55. Re3+ {[%clk 0:00:05.5]} 55... Bf3
{[%clk 0:00:24.8]} 0-1

[Event "*** Titled Tuesday Blitz"]
[Site "Chess.com"]
[Date "2020.05.26"]
[Round "10"]
[White "Paladin61"]
[Black "VerdeNotte"]
[Result "0-1"]
[WhiteElo "2634"]
[BlackElo "2779"]
[TimeControl "180+1"]
[EndTime "12:03:43 PDT"]
[Termination "VerdeNotte won by resignation"]

1. b3 {[%clk 0:02:59.6]} 1... e5 {[%clk 0:02:58.8]} 2. Bb2 {[%clk 0:02:59.8]}
2... Nc6 {[%clk 0:02:59]} 3. e3 {[%clk 0:02:59.8]} 3... d5 {[%clk 0:02:59.2]} 4.
Bb5 {[%clk 0:02:59.3]} 4... Ne7 {[%clk 0:02:59.5]} 5. Nf3 {[%clk 0:02:43.6]}
5... e4 {[%clk 0:02:51.5]} 6. Ne5 {[%clk 0:02:27.1]} 6... a6 {[%clk 0:02:46.1]}
7. Qh5 {[%clk 0:02:11.6]} 7... Be6 {[%clk 0:02:37]} 8. Bxc6+ {[%clk 0:02:00.7]}
8... Nxc6 {[%clk 0:02:36.2]} 9. Nxc6 {[%clk 0:01:55.4]} 9... bxc6 {[%clk
0:02:36.1]} 10. Nc3 {[%clk 0:01:54.5]} 10... Bd6 {[%clk 0:02:14.2]} 11. Ne2
{[%clk 0:01:49.7]} 11... O-O {[%clk 0:02:06.2]} 12. O-O {[%clk 0:01:22]} 12...
Qd7 {[%clk 0:01:52.1]} 13. h3 {[%clk 0:01:18]} 13... f6 {[%clk 0:01:39]} 14. d3
{[%clk 0:01:11.2]} 14... Bf5 {[%clk 0:01:31.4]} 15. Rfd1 {[%clk 0:00:38.2]}
15... Bg6 {[%clk 0:01:31]} 16. Qh4 {[%clk 0:00:36.4]} 16... Rfe8 {[%clk
0:01:18.1]} 17. Rac1 {[%clk 0:00:35.5]} 17... a5 {[%clk 0:01:14.4]} 18. a4
{[%clk 0:00:34.8]} 18... exd3 {[%clk 0:01:09.1]} 19. cxd3 {[%clk 0:00:34.7]}
19... Rab8 {[%clk 0:01:09.3]} 20. Nd4 {[%clk 0:00:31.7]} 20... Rb6 {[%clk
0:01:08.2]} 21. Bc3 {[%clk 0:00:28.7]} 21... Ra8 {[%clk 0:01:00.6]} 22. Be1
{[%clk 0:00:25.6]} 22... Be5 {[%clk 0:00:55.7]} 23. Rc3 {[%clk 0:00:15.7]} 23...
Rb4 {[%clk 0:00:41.2]} 24. Rdc1 {[%clk 0:00:13.3]} 24... Bxd4 {[%clk 0:00:39.2]}
25. exd4 {[%clk 0:00:13]} 25... Ra6 {[%clk 0:00:33.8]} 26. Qf4 {[%clk
0:00:09.8]} 26... h6 {[%clk 0:00:30.6]} 27. Bd2 {[%clk 0:00:08]} 27... Rab6
{[%clk 0:00:30.4]} 28. Qg3 {[%clk 0:00:07.6]} 28... Kh7 {[%clk 0:00:29.5]} 29.
Be3 {[%clk 0:00:07.3]} 29... Rxb3 {[%clk 0:00:28.7]} 30. Rxb3 {[%clk 0:00:05]}
30... Rxb3 {[%clk 0:00:28.4]} 31. Rc5 {[%clk 0:00:04.7]} 31... Bxd3 {[%clk
0:00:26.9]} 32. Rxa5 {[%clk 0:00:04.3]} 32... Ra3 {[%clk 0:00:25.5]} 33. Ra7
{[%clk 0:00:04]} 33... Qd6 {[%clk 0:00:21.2]} 34. Bf4 {[%clk 0:00:03.8]} 34...
Qf8 {[%clk 0:00:12.2]} 35. Rxc7 {[%clk 0:00:03.4]} 35... Bg6 {[%clk 0:00:11]}
36. Rxc6 {[%clk 0:00:03.1]} 36... Rxg3 {[%clk 0:00:10.6]} 37. Bxg3 {[%clk
0:00:02.7]} 37... Qb4 {[%clk 0:00:09.5]} 38. Rc7 {[%clk 0:00:02.2]} 38... Qxa4
{[%clk 0:00:07.2]} 39. Bd6 {[%clk 0:00:03.1]} 39... Qd1+ {[%clk 0:00:05.3]} 40.
Kh2 {[%clk 0:00:02.8]} 40... Qxd4 {[%clk 0:00:05.9]} 41. Bg3 {[%clk 0:00:01.7]}
41... Qe4 {[%clk 0:00:05]} 42. Rd7 {[%clk 0:00:01.6]} 42... d4 {[%clk
0:00:05.2]} 43. Rd6 {[%clk 0:00:01.9]} 43... d3 {[%clk 0:00:05.5]} 44. f3 {[%clk
0:00:02.6]} 44... Qe2 {[%clk 0:00:05.9]} 45. Bf4 {[%clk 0:00:02.4]} 45... Bh5
{[%clk 0:00:06.4]} 46. h4 {[%clk 0:00:02.6]} 46... Bxf3 {[%clk 0:00:06.4]} 0-1

[Event "*** Titled Tuesday Blitz"]
[Site "Chess.com"]
[Date "2020.05.26"]
[Round "10"]
[White "AEMEffi"]
[Black "pfalcon1949"]
[Result "1-0"]
[WhiteElo "2310"]
[BlackElo "2066"]
[TimeControl "180+1"]
[EndTime "12:03:43 PDT"]
[Termination "AEMEffi won by checkmate"]

1. d4 {[%clk 0:03:00.9]} 1... Nf6 {[%clk 0:02:59.3]} 2. c4 {[%clk 0:03:01.2]}
2... e6 {[%clk 0:02:59.7]} 3. g3 {[%clk 0:02:57.8]} 3... Bb4+ {[%clk 0:02:58.1]}
4. Bd2 {[%clk 0:02:57]} 4... Qe7 {[%clk 0:02:56.6]} 5. Bg2 {[%clk 0:02:56.2]}
5... O-O {[%clk 0:02:55.8]} 6. Nc3 {[%clk 0:02:54.1]} 6... Nc6 {[%clk
0:02:50.1]} 7. Nf3 {[%clk 0:02:51.8]} 7... Na5 {[%clk 0:02:48.2]} 8. b3 {[%clk
0:02:48.1]} 8... b6 {[%clk 0:02:46.8]} 9. Ne5 {[%clk 0:02:28.8]} 9... Bb7 {[%clk
0:02:46.4]} 10. Bxb7 {[%clk 0:02:26.9]} 10... Nxb7 {[%clk 0:02:46.4]} 11. Nd3
{[%clk 0:02:24.6]} 11... Bxc3 {[%clk 0:02:08.5]} 12. Bxc3 {[%clk 0:02:25.5]}
12... Ne4 {[%clk 0:02:08.1]} 13. Bb2 {[%clk 0:02:23.4]} 13... f5 {[%clk
0:02:06.4]} 14. O-O {[%clk 0:02:15.9]} 14... Nbd6 {[%clk 0:02:01.5]} 15. f3
{[%clk 0:02:03.3]} 15... Nf6 {[%clk 0:01:51.1]} 16. Qd2 {[%clk 0:01:58]} 16...
Rad8 {[%clk 0:01:42.8]} 17. Rae1 {[%clk 0:01:48.8]} 17... Nf7 {[%clk 0:01:42.6]}
18. e4 {[%clk 0:01:43.9]} 18... fxe4 {[%clk 0:01:35.3]} 19. fxe4 {[%clk
0:01:44.8]} 19... Ng4 {[%clk 0:01:27.9]} 20. Rf4 {[%clk 0:01:27.3]} 20... Qg5
{[%clk 0:01:22.4]} 21. Qe2 {[%clk 0:01:22]} 21... Nfh6 {[%clk 0:01:18.1]} 22.
Bc1 {[%clk 0:01:18]} 22... Qg6 {[%clk 0:01:11.6]} 23. Ref1 {[%clk 0:01:12]}
23... Rxf4 {[%clk 0:01:09.1]} 24. Bxf4 {[%clk 0:01:09.5]} 24... d6 {[%clk
0:01:06]} 25. Bxh6 {[%clk 0:00:42.1]} 25... Nxh6 {[%clk 0:01:02.3]} 26. Nf4
{[%clk 0:00:43]} 26... Qe8 {[%clk 0:00:56.5]} 27. d5 {[%clk 0:00:38.9]} 27...
exd5 {[%clk 0:00:52.4]} 28. cxd5 {[%clk 0:00:39]} 28... Rd7 {[%clk 0:00:44.8]}
29. Ne6 {[%clk 0:00:35.6]} 29... Re7 {[%clk 0:00:45.1]} 30. Rf8+ {[%clk
0:00:32.8]} 30... Qxf8 {[%clk 0:00:42.8]} 31. Nxf8 {[%clk 0:00:33.7]} 31... Kxf8
{[%clk 0:00:42.6]} 32. Qa6 {[%clk 0:00:20.7]} 32... Nf7 {[%clk 0:00:43.5]} 33.
Qxa7 {[%clk 0:00:20.5]} 33... g6 {[%clk 0:00:39.9]} 34. Qb8+ {[%clk 0:00:19.1]}
34... Kg7 {[%clk 0:00:40.8]} 35. a4 {[%clk 0:00:18.6]} 35... Ne5 {[%clk
0:00:40.3]} 36. Kg2 {[%clk 0:00:17.8]} 36... Rf7 {[%clk 0:00:39.8]} 37. b4
{[%clk 0:00:17.3]} 37... Nd3 {[%clk 0:00:39.9]} 38. a5 {[%clk 0:00:16.2]} 38...
Nxb4 {[%clk 0:00:37.1]} 39. axb6 {[%clk 0:00:15.5]} 39... cxb6 {[%clk 0:00:38]}
40. Qxd6 {[%clk 0:00:15.5]} 40... Nd3 {[%clk 0:00:34.6]} 41. Qxb6 {[%clk
0:00:15.1]} 41... h5 {[%clk 0:00:30.6]} 42. Qd4+ {[%clk 0:00:14.9]} 42... Kh6
{[%clk 0:00:27.9]} 43. Qxd3 {[%clk 0:00:15.1]} 43... Rd7 {[%clk 0:00:28.1]} 44.
e5 {[%clk 0:00:14.4]} 44... Rd8 {[%clk 0:00:28.3]} 45. e6 {[%clk 0:00:14.6]}
45... Re8 {[%clk 0:00:28.3]} 46. Qe3+ {[%clk 0:00:13.9]} 46... Kg7 {[%clk
0:00:27.4]} 47. d6 {[%clk 0:00:14.8]} 47... Ra8 {[%clk 0:00:25.8]} 48. d7 {[%clk
0:00:13.6]} 48... Ra2+ {[%clk 0:00:26.3]} 49. Kh3 {[%clk 0:00:13.8]} 49... Ra8
{[%clk 0:00:26.3]} 50. Qd4+ {[%clk 0:00:13.3]} 50... Kh6 {[%clk 0:00:24.3]} 51.
d8=Q {[%clk 0:00:12.3]} 51... Rxd8 {[%clk 0:00:23.8]} 52. Qxd8 {[%clk
0:00:12.2]} 52... h4 {[%clk 0:00:23.9]} 53. Qh8+ {[%clk 0:00:11.3]} 53... Kg5
{[%clk 0:00:23.6]} 54. Qxh4+ {[%clk 0:00:11.2]} 54... Kf5 {[%clk 0:00:24.2]} 55.
Qg4+ {[%clk 0:00:11.3]} 55... Kf6 {[%clk 0:00:23.9]} 56. Kg2 {[%clk 0:00:11.2]}
56... g5 {[%clk 0:00:23]} 57. h4 {[%clk 0:00:10.9]} 57... gxh4 {[%clk
0:00:21.8]} 58. gxh4 {[%clk 0:00:11.8]} 58... Ke7 {[%clk 0:00:20.6]} 59. Qf5
{[%clk 0:00:11.6]} 59... Kd6 {[%clk 0:00:21.5]} 60. Kf3 {[%clk 0:00:11.5]} 60...
Ke7 {[%clk 0:00:21.4]} 61. Ke4 {[%clk 0:00:11.3]} 61... Kd6 {[%clk 0:00:21.5]}
62. Kd4 {[%clk 0:00:10.7]} 62... Kc7 {[%clk 0:00:21.8]} 63. Kc5 {[%clk
0:00:10.2]} 63... Kb7 {[%clk 0:00:21.5]} 64. Qf7+ {[%clk 0:00:10]} 64... Ka6
{[%clk 0:00:21.3]} 65. Qe7 {[%clk 0:00:09.9]} 65... Ka5 {[%clk 0:00:20.4]} 66.
Qa7# {[%clk 0:00:10.8]} 1-0